fUSD/lending_fUSD_20251122
["ID","MTS","AMOUNT","RATE_DAILY","PERIOD"]
[394643037,1763806295231,-651.06,0.00018356,2]
[394643038,1763806295241,-835.55,0.00018356,2]
[394643039,1763806295250,-500.0,0.00018356,2]
[394643040,1763806295260,-776.5,0.00018356,2]
[394643041,1763806295272,-567.01,0.00018356,2]
[394643042,1763806295282,-662.91,0.00018356,2]
[394643043,1763806295291,-500.0,0.00018356,2]
[394643044,1763806295301,-765.48,0.00018356,2]
[394643045,1763806295311,-577.58,0.00018356,2]
[394643046,1763806295321,-819.38,0.00018356,2]
[394643047,1763806295331,-500.0,0.00018356,2]
[394643048,1763806295340,-325.78,0.00018356,2]
[394643049,1763806295349,-994.62,0.00018356,2]
[394643050,1763806295360,-2977.14,0.00018356,2]
[394643051,1763806295373,-500.0,0.00018356,2]
[394643052,1763806295382,-500.0,0.00018356,2]
[394643053,1763806295393,-584.85,0.00018356,2]
[394643054,1763806295403,-600.0,0.00018356,2]
[394643055,1763806295413,-151.41,0.00018415,2]
[394643056,1763806295423,-651.0,0.00018493,2]
[394643057,1763806295432,-500.0,0.00018493,2]
[394643058,1763806295441,-469.0,0.00018493,2]
[394643059,1763806295451,-553.0,0.00018493,2]
[394643060,1763806295462,-2190.14598,0.0001858,2]
[394643061,1763806295472,-651.0,0.0001863,2]
[394643062,1763806295481,-500.0,0.0001863,2]
[394643063,1763806295491,-469.0,0.0001863,2]
[394643064,1763806295500,-553.0,0.0001863,2]
[394643065,1763806295510,-204.63602646,0.0001863,2]
[394643066,1763806295519,-500.0,0.0001863,2]
[394643067,1763806295528,-500.0,0.0001863,2]
[394643068,1763806295538,-867.5,0.0001863,2]
[394643069,1763806295547,-500.0,0.0001863,2]
[394643070,1763806295561,-500.0,0.0001863,2]
[394643071,1763806295581,-643.22,0.0001863,2]
[394643072,1763806295590,-843.09,0.0001863,2]
[394643073,1763806295599,-664.19,0.0001863,2]
[394643074,1763806295609,-579.49,0.0001863,2]
[394643075,1763806295618,-944.02,0.0001863,2]
[394643076,1763806295629,-500.0,0.0001863,2]
[394643077,1763806295639,-781.7,0.0001863,2]
[394643078,1763806295649,-500.0,0.0001863,2]
[394643079,1763806295659,-754.3,0.0001863,2]
[394643080,1763806295669,-500.0,0.0001863,2]
[394643081,1763806295679,-500.0,0.0001863,2]
[394643082,1763806295688,-826.89,0.0001863,2]
[394643083,1763806295698,-588.78168029,0.0001863,2]
[394643084,1763806295708,-760.07,0.0001863,2]
[394643085,1763806295718,-660.25,0.0001863,2]
[394643086,1763806295731,-196.87640812,0.0001863,2]
[394643087,1763806295743,-500.0,0.0001863,2]
[394643088,1763806295753,-500.0,0.0001863,2]
[394643089,1763806295763,-620.59,0.0001863,2]
[394643090,1763806295774,-718.76,0.0001863,2]
[394643091,1763806295784,-589.29,0.0001863,2]
[394643092,1763806295794,-523.48,0.0001863,2]
[394643093,1763806295804,-500.0,0.0001863,2]
[394643094,1763806295814,-1151.27,0.0001863,2]
[394643095,1763806295825,-539.63,0.0001863,2]
[394643096,1763806295835,-943.25,0.0001863,2]
[394643097,1763806295845,-500.0,0.0001863,2]
[394643098,1763806295855,-532.89,0.0001863,2]
[394643099,1763806295865,-500.0,0.0001863,2]
[394643100,1763806295876,-500.0,0.0001863,2]
[394643101,1763806295887,-717.92,0.0001863,2]
[394643102,1763806295899,-500.0,0.0001863,2]
[394643103,1763806295910,-791.9,0.0001863,2]
[394643104,1763806295920,-500.0,0.0001863,2]
[394643105,1763806295930,-671.16,0.0001863,2]
[394643106,1763806295940,-513.69,0.0001863,2]
[394643107,1763806295950,-718.46,0.0001863,2]
[394643108,1763806295960,-903.01,0.0001863,2]
[394643109,1763806295970,-500.0,0.0001863,2]
[394643110,1763806295979,-500.0,0.0001863,2]
[394643111,1763806295989,-500.0,0.0001863,2]
[394643112,1763806295999,-619.27,0.0001863,2]
[394643113,1763806296008,-633.07,0.0001863,2]
[394643114,1763806296018,-512.4,0.0001863,2]
[394643115,1763806296028,-734.0,0.0001863,2]
[394643116,1763806296038,-686.05,0.0001863,2]
[394643117,1763806296049,-689.73,0.0001863,2]
[394643118,1763806296059,-515.09,0.0001863,2]
[394643119,1763806296069,-909.79,0.0001863,2]
[394643120,1763806296078,-534.13,0.0001863,2]
[394643121,1763806296088,-987.88,0.0001863,2]
[394643122,1763806296097,-500.0,0.0001863,2]
[394643123,1763806296107,-1118.33,0.0001863,2]
[394643124,1763806296116,-593.96,0.0001863,2]
[394643125,1763806296127,-532.39,0.0001863,2]
[394643126,1763806296136,-500.0,0.0001863,2]
[394643127,1763806296148,-500.0,0.0001863,2]
[394643128,1763806296158,-500.0,0.0001863,2]
[394643129,1763806296167,-529.28417941,0.0001863,2]
[394643130,1763806296177,-500.0,0.0001863,2]
[394643131,1763806296429,-500.0,0.0001863,2]
[394643132,1763806296439,-500.0,0.0001863,2]
[394643133,1763806296450,-500.0,0.0001863,2]
[394643134,1763806296460,-500.0,0.0001863,2]
[394643135,1763806296470,-745.16,0.0001863,2]
[394643136,1763806296479,-643.4,0.0001863,2]
[394643137,1763806296492,-760.48,0.0001863,2]
[394643138,1763806296501,-566.63585508,0.0001863,2]
[394643139,1763806296509,-660.26,0.0001863,2]
[394643140,1763806296519,-500.0,0.0001863,2]
[394643141,1763806296528,-500.0,0.0001863,2]
[394643142,1763806296537,-500.0,0.0001863,2]
[394643143,1763806296546,-643.35,0.0001863,2]
[394643144,1763806296555,-536.96,0.0001863,2]
[394643145,1763806296564,-561.03,0.0001863,2]
[394643146,1763806296573,-667.06,0.0001863,2]
[394643147,1763806296582,-500.0,0.0001863,2]
[394643148,1763806296591,-840.36,0.0001863,2]
[394643149,1763806296601,-588.85,0.0001863,2]
[394643150,1763806296610,-527.44,0.0001863,2]
[394643151,1763806296619,-500.0,0.0001863,2]
[394643152,1763806296629,-500.0,0.0001863,2]
[394643153,1763806296638,-1117.89,0.0001863,2]
[394643154,1763806296648,-500.0,0.0001863,2]
[394643155,1763806296657,-761.79,0.0001863,2]
[394643156,1763806296667,-620.55,0.0001863,2]
[394643157,1763806296677,-263.67390325,0.0001863,2]
[394643158,1763806296686,-593.36,0.0001863,2]
[394643159,1763806296695,-676.83,0.0001863,2]
[394643160,1763806296705,-500.0,0.0001863,2]
[394643161,1763806296714,-900.44,0.0001863,2]
[394643162,1763806296723,-1015.0,0.0001863,2]
[394643163,1763806296736,-588.06,0.0001863,2]
[394643164,1763806296747,-511.04,0.0001863,2]
[394643165,1763806296756,-500.0,0.0001863,2]
[394643166,1763806296766,-1144.77,0.0001863,2]
[394643167,1763806296777,-787.96,0.0001863,2]
[394643168,1763806296787,-500.0,0.0001863,2]
[394643169,1763806296796,-449.14223142,0.0001863,2]
[394643170,1763806296805,-865.95,0.0001863,2]
[394643171,1763806296815,-592.3,0.0001863,2]
[394643172,1763806296825,-540.6,0.0001863,2]
[394643173,1763806296835,-500.0,0.0001863,2]
[394643174,1763806296844,-790.49,0.0001863,2]
[394643175,1763806296854,-580.1,0.0001863,2]
[394643176,1763806296863,-500.0,0.0001863,2]
[394643177,1763806296873,-766.2,0.0001863,2]
[394643178,1763806296882,-557.29,0.0001863,2]
[394643179,1763806296893,-500.0,0.0001863,2]
[394643180,1763806296902,-500.0,0.0001863,2]
[394643181,1763806296911,-637.13,0.0001863,2]
[394643182,1763806296921,-1511.77,0.0001863,2]
[394643183,1763806296930,-699.88,0.0001863,2]
[394643184,1763806296939,-500.0,0.0001863,2]
[394643185,1763806296948,-705.23,0.0001863,2]
[394643186,1763806296958,-500.0,0.0001863,2]
[394643187,1763806296976,-768.25,0.0001863,2]
[394643188,1763806296985,-561.04,0.0001863,2]
[394643189,1763806296995,-500.0,0.0001863,2]
[394643190,1763806297005,-681.07,0.0001863,2]
[394643191,1763806297015,-889.28,0.0001863,2]
[394643192,1763806297026,-500.0,0.0001863,2]
[394643193,1763806297040,-631.01203641,0.0001863,2]
[394643194,1763806297050,-500.0,0.0001863,2]
[394643195,1763806297062,-910.7,0.0001863,2]
[394643196,1763806297073,-581.69,0.0001863,2]
[394643197,1763806297083,-681.0,0.0001863,2]
[394643198,1763806297096,-500.0,0.0001863,2]
[394643199,1763806297107,-500.0,0.0001863,2]
[394643200,1763806297116,-561.58,0.0001863,2]
[394643201,1763806297127,-520.44,0.0001863,2]
[394643202,1763806297137,-892.07,0.0001863,2]
[394643203,1763806297147,-500.0,0.0001863,2]
[394643204,1763806297156,-500.0,0.0001863,2]
[394643205,1763806297166,-648.76,0.0001863,2]
[394643206,1763806297177,-540.37,0.0001863,2]
[394643207,1763806297186,-500.0,0.0001863,2]
[394643208,1763806297196,-500.0,0.0001863,2]
[394643209,1763806297205,-1478.21,0.0001863,2]
[394643210,1763806297214,-500.0,0.0001863,2]
[394643211,1763806297223,-500.0,0.0001863,2]
[394643212,1763806297233,-680.96,0.0001863,2]
[394643213,1763806297242,-685.91,0.0001863,2]
[394643214,1763806297253,-500.0,0.0001863,2]
[394643215,1763806297263,-778.77,0.0001863,2]
[394643216,1763806297273,-500.0,0.0001863,2]
[394643217,1763806297283,-500.0,0.0001863,2]
[394643218,1763806297294,-500.0,0.0001863,2]
[394643219,1763806297304,-714.38,0.0001863,2]
[394643220,1763806297314,-500.0,0.0001863,2]
[394643221,1763806297324,-758.68,0.0001863,2]
[394643222,1763806297333,-745.24,0.0001863,2]
[394643223,1763806297343,-758.78,0.0001863,2]
[394643224,1763806297352,-1003.75,0.0001863,2]
[394643225,1763806297362,-500.0,0.0001863,2]
[394643226,1763806297371,-500.0,0.0001863,2]
[394643227,1763806297381,-500.0,0.0001863,2]
[394643228,1763806297391,-500.0,0.0001863,2]
[394643229,1763806297401,-753.49,0.0001863,2]
[394643230,1763806297410,-697.04,0.0001863,2]
[394643231,1763806297419,-595.07,0.0001863,2]
[394643232,1763806297428,-892.51,0.0001863,2]
[394643233,1763806297439,-507.73,0.0001863,2]
[394643234,1763806297450,-500.0,0.0001863,2]
[394643235,1763806297461,-500.0,0.0001863,2]
[394643236,1763806297470,-817.08,0.0001863,2]
[394643237,1763806297479,-500.0,0.0001863,2]
[394643238,1763806297489,-1276.37,0.0001863,2]
[394643239,1763806297498,-598.13,0.0001863,2]
[394643240,1763806297507,-500.0,0.0001863,2]
[394643241,1763806297516,-500.0,0.0001863,2]
[394643242,1763806297525,-683.96,0.0001863,2]
[394643243,1763806297534,-500.0,0.0001863,2]
[394643244,1763806297543,-724.4,0.0001863,2]
[394643245,1763806297553,-500.0,0.0001863,2]
[394643246,1763806297562,-700.99,0.0001863,2]
[394643247,1763806297571,-506.6,0.0001863,2]
[394643248,1763806297581,-500.0,0.0001863,2]
[394643249,1763806297591,-500.0,0.0001863,2]
[394643250,1763806297600,-830.04,0.0001863,2]
[394643251,1763806297608,-509.8,0.0001863,2]
[394643252,1763806297618,-500.0,0.0001863,2]
[394643253,1763806297627,-645.82,0.0001863,2]
[394643254,1763806297637,-500.0,0.0001863,2]
[394643255,1763806297647,-500.0,0.0001863,2]
[394643256,1763806297656,-500.0,0.0001863,2]
[394643257,1763806297666,-500.0,0.0001863,2]
[394643258,1763806297675,-500.0,0.0001863,2]
[394643259,1763806297684,-500.0,0.0001863,2]
[394643260,1763806297694,-651.49,0.0001863,2]
[394643261,1763806297703,-500.0,0.0001863,2]
[394643262,1763806297713,-500.0,0.0001863,2]
[394643263,1763806297722,-500.0,0.0001863,2]
[394643264,1763806297732,-680.93,0.0001863,2]
[394643265,1763806297745,-950.5,0.0001863,2]
[394643266,1763806297754,-500.0,0.0001863,2]
[394643267,1763806297763,-768.8,0.0001863,2]
[394643268,1763806297772,-1163.93,0.0001863,2]
[394643269,1763806297783,-938.85,0.0001863,2]
[394643270,1763806297796,-500.0,0.0001863,2]
[394643271,1763806297806,-816.31,0.0001863,2]
[394643272,1763806297816,-500.0,0.0001863,2]
[394643273,1763806297826,-695.83,0.0001863,2]
[394643274,1763806297835,-500.0,0.0001863,2]
[394643275,1763806297844,-1025.64,0.0001863,2]
[394643276,1763806297853,-692.67,0.0001863,2]
[394643277,1763806297863,-970.47,0.0001863,2]
[394643278,1763806297872,-500.0,0.0001863,2]
[394643279,1763806297882,-500.0,0.0001863,2]
[394643280,1763806297891,-500.0,0.0001863,2]
[394643281,1763806297900,-5173.16,0.0001863,2]
[394643282,1763806297910,-500.0,0.0001863,2]
[394643283,1763806297919,-500.0,0.0001863,2]
[394643284,1763806297930,-500.0,0.0001863,2]
[394643285,1763806297940,-500.0,0.0001863,2]
[394643286,1763806297951,-974.11,0.0001863,2]
[394643287,1763806297961,-500.0,0.0001863,2]
[394643288,1763806297972,-500.0,0.0001863,2]
[394643289,1763806297982,-500.0,0.0001863,2]
[394643290,1763806297991,-500.0,0.0001863,2]
[394643291,1763806298000,-942.8,0.0001863,2]
[394643292,1763806298010,-1130.33,0.0001863,2]
[394643293,1763806298018,-500.0,0.0001863,2]
[394643294,1763806298028,-2544.87,0.0001863,2]
[394643295,1763806298038,-804.3,0.0001863,2]
[394643296,1763806298048,-674.23,0.0001863,2]
[394643297,1763806298057,-1191.45,0.0001863,2]
[394643298,1763806298067,-585.41,0.0001863,2]
[394643299,1763806298077,-500.0,0.0001863,2]
[394643300,1763806298086,-500.0,0.0001863,2]
[394643301,1763806298095,-839.14,0.0001863,2]
[394643302,1763806298105,-564.02,0.0001863,2]
[394643303,1763806298114,-505.12,0.0001863,2]
[394643304,1763806298124,-559.83,0.0001863,2]
[394643305,1763806298133,-500.0,0.0001863,2]
[394643306,1763806298143,-500.0,0.0001863,2]
[394643307,1763806298152,-500.0,0.0001863,2]
[394643308,1763806298162,-1055.95,0.0001863,2]
[394643309,1763806298172,-1463.02,0.0001863,2]
[394643310,1763806298181,-521.42,0.0001863,2]
[394643311,1763806298191,-733.24,0.0001863,2]
[394643312,1763806298200,-782.33,0.0001863,2]
[394643313,1763806298211,-519.91216055,0.0001863,2]
[394643314,1763806298220,-734.36,0.0001863,2]
[394643315,1763806298230,-839.69,0.0001863,2]
[394643316,1763806298240,-500.0,0.0001863,2]
[394643317,1763806298249,-500.0,0.0001863,2]
[394643318,1763806298259,-1249.82,0.0001863,2]
[394643319,1763806298268,-1049.8,0.0001863,2]
[394643320,1763806298277,-523.31,0.0001863,2]
[394643321,1763806298287,-1579.91,0.0001863,2]
[394643322,1763806298296,-500.0,0.0001863,2]
[394643323,1763806298305,-500.0,0.0001863,2]
[394643324,1763806298314,-500.0,0.0001863,2]
[394643325,1763806298324,-532.69,0.0001863,2]
[394643326,1763806298333,-570.72,0.0001863,2]
[394643327,1763806298343,-500.0,0.0001863,2]
[394643328,1763806298353,-515.86,0.0001863,2]
[394643329,1763806298362,-1073.42,0.0001863,2]
[394643330,1763806298375,-1688.87,0.0001863,2]
[394643331,1763806298386,-500.0,0.0001863,2]
[394643332,1763806298396,-500.0,0.0001863,2]
[394643333,1763806298405,-602.73,0.0001863,2]
[394643334,1763806298414,-786.03,0.0001863,2]
[394643335,1763806298424,-500.0,0.0001863,2]
[394643336,1763806298433,-500.0,0.0001863,2]
[394643337,1763806298443,-500.0,0.0001863,2]
[394643338,1763806298453,-1309.89,0.0001863,2]
[394643339,1763806298462,-500.0,0.0001863,2]
[394643340,1763806298472,-500.0,0.0001863,2]
[394643341,1763806298481,-500.0,0.0001863,2]
[394643342,1763806298491,-919.35,0.0001863,2]
[394643343,1763806298500,-606.55,0.0001863,2]
[394643344,1763806298509,-816.25,0.0001863,2]
[394643345,1763806298518,-523.55,0.0001863,2]
[394643346,1763806298527,-500.0,0.0001863,2]
[394643347,1763806298537,-500.0,0.0001863,2]
[394643348,1763806298546,-500.0,0.0001863,2]
[394643349,1763806298555,-1202.89,0.0001863,2]
[394643350,1763806298568,-696.52,0.0001863,2]
[394643351,1763806298578,-532.1,0.0001863,2]
[394643352,1763806298588,-1008.12,0.0001863,2]
[394643353,1763806298597,-771.55,0.0001863,2]
[394643354,1763806298607,-682.29,0.0001863,2]
[394643355,1763806298617,-597.76,0.0001863,2]
[394643356,1763806298626,-500.0,0.0001863,2]
[394643357,1763806298636,-2185.15,0.0001863,2]
[394643358,1763806298645,-500.0,0.0001863,2]
[394643359,1763806298654,-500.0,0.0001863,2]
[394643360,1763806298664,-935.0,0.0001863,2]
[394643361,1763806298674,-561.06,0.0001863,2]
[394643362,1763806298683,-558.65,0.0001863,2]
[394643363,1763806298692,-1048.65,0.0001863,2]
[394643364,1763806298701,-500.0,0.0001863,2]
[394643365,1763806298711,-500.0,0.0001863,2]
[394643366,1763806298720,-517.79,0.0001863,2]
[394643367,1763806298731,-500.0,0.0001863,2]
[394643368,1763806298742,-500.0,0.0001863,2]
[394643369,1763806298824,-1090.24,0.0001863,2]
[394643370,1763806298834,-776.75,0.0001863,2]
[394643371,1763806298843,-595.92,0.0001863,2]
[394643372,1763806298853,-500.0,0.0001863,2]
[394643373,1763806298863,-275.19313902,0.0001863,2]
[394643374,1763806298873,-500.0,0.0001863,2]
[394643375,1763806298883,-500.0,0.0001863,2]
[394643376,1763806298892,-500.0,0.0001863,2]
[394643377,1763806298902,-500.0,0.0001863,2]
[394643378,1763806298911,-2164.02,0.0001863,2]
[394643379,1763806298920,-500.0,0.0001863,2]
[394643380,1763806298935,-500.0,0.0001863,2]
[394643381,1763806298944,-500.0,0.0001863,2]
[394643382,1763806298953,-655.49,0.0001863,2]
[394643383,1763806298962,-1677.03,0.0001863,2]
[394643384,1763806298971,-7021.18,0.0001863,2]
[394643385,1763806298979,-500.0,0.0001863,2]
[394643386,1763806298989,-696.44,0.0001863,2]
[394643387,1763806298998,-786.49,0.0001863,2]
[394643388,1763806299006,-500.0,0.0001863,2]
[394643389,1763806299016,-500.0,0.0001863,2]
[394643390,1763806299025,-500.0,0.0001863,2]
[394643391,1763806299034,-1780.25,0.0001863,2]
[394643392,1763806299044,-557.18,0.0001863,2]
[394643393,1763806299053,-987.68,0.0001863,2]
[394643394,1763806299063,-1070.85,0.0001863,2]
[394643395,1763806299072,-672.12,0.0001863,2]
[394643396,1763806299081,-500.0,0.0001863,2]
[394643397,1763806299091,-702.43,0.0001863,2]
[394643398,1763806299100,-628.98,0.0001863,2]
[394643399,1763806299109,-586.32,0.0001863,2]
[394643400,1763806299119,-500.0,0.0001863,2]
[394643401,1763806299128,-500.0,0.0001863,2]
[394643402,1763806299138,-500.0,0.0001863,2]
[394643403,1763806299150,-1078.17,0.0001863,2]
[394643404,1763806299159,-500.0,0.0001863,2]
[394643405,1763806299168,-500.0,0.0001863,2]
[394643406,1763806299178,-557.34,0.0001863,2]
[394643407,1763806299187,-500.0,0.0001863,2]
[394643408,1763806299196,-500.0,0.0001863,2]
[394643409,1763806299205,-631.15,0.0001863,2]
[394643410,1763806299214,-1073.87,0.0001863,2]
[394643411,1763806299224,-503.62,0.0001863,2]
[394643412,1763806299234,-500.0,0.0001863,2]
[394643413,1763806299243,-500.0,0.0001863,2]
[394643414,1763806299251,-881.11,0.0001863,2]
[394643415,1763806299261,-500.0,0.0001863,2]
[394643416,1763806299271,-5846.52,0.0001863,2]
[394643417,1763806299281,-236.92062228,0.0001863,2]
[394643418,1763806299290,-729.49,0.0001863,2]
[394643419,1763806299300,-4450.71,0.0001863,2]
[394643420,1763806299313,-3727.77,0.0001863,2]
[394643421,1763806299323,-500.0,0.0001863,2]
[394643422,1763806299333,-500.0,0.0001863,2]
[394643423,1763806299342,-673.15,0.0001863,2]
[394643424,1763806299353,-867.82,0.0001863,2]
[394643425,1763806299362,-500.0,0.0001863,2]
[394643426,1763806299371,-674.27,0.0001863,2]
[394643427,1763806299380,-500.0,0.0001863,2]
[394643428,1763806299389,-1064.84,0.0001863,2]
[394643429,1763806299399,-978.13,0.0001863,2]
[394643430,1763806299407,-1344.66,0.0001863,2]
[394643431,1763806299416,-651.06,0.0001863,2]
[394643432,1763806299426,-835.55,0.0001863,2]
[394643433,1763806299435,-500.0,0.0001863,2]
[394643434,1763806299444,-776.5,0.0001863,2]
[394643435,1763806299453,-567.01,0.0001863,2]
[394643436,1763806299462,-662.91,0.0001863,2]
[394643437,1763806299471,-500.0,0.0001863,2]
[394643438,1763806299479,-765.48,0.0001863,2]
[394643439,1763806299488,-577.58,0.0001863,2]
[394643440,1763806299497,-819.38,0.0001863,2]
[394643441,1763806299506,-500.0,0.0001863,2]
[394643442,1763806299516,-2977.14,0.0001863,2]
[394643443,1763806299526,-994.62,0.0001863,2]
[394643444,1763806299536,-500.0,0.0001863,2]
[394643445,1763806299546,-541.41198353,0.0001863,2]
[394643446,1763806299556,-584.85,0.0001863,2]
[394643447,1763806299566,-600.0,0.0001863,2]
[394643448,1763806299576,-225.71,0.00018653,2]
[394643449,1763806299587,-183.13605389,0.00018655,2]
[394643450,1763806299598,-365.0,0.00018673,2]
[394643451,1763806299607,-1000.0,0.0001876,2]
[394643452,1763806299616,-651.0,0.00018767,2]
[394643453,1763806299626,-531.06460942,0.00018767,2]
[394643454,1763806299638,-469.0,0.00018767,2]
[394643455,1763806299649,-553.0,0.00018767,2]
[394643456,1763806299659,-2060.0,0.00018851,2]
[394643457,1763806299669,-651.0,0.00018904,2]
[394643458,1763806299679,-469.0,0.00018904,2]
[394643459,1763806299689,-553.0,0.00018904,2]
[394643460,1763806299699,-500.0,0.00018904,2]
[394643461,1763806299707,-500.0,0.00018904,2]
[394643462,1763806299716,-867.5,0.00018904,2]
[394643463,1763806299725,-500.0,0.00018904,2]
[394643464,1763806299735,-500.0,0.00018904,2]
[394643465,1763806299748,-643.22,0.00018904,2]
[394643466,1763806299757,-843.09,0.00018904,2]
[394643467,1763806299766,-664.19,0.00018904,2]
[394643468,1763806299776,-579.49,0.00018904,2]
[394643469,1763806299786,-944.02,0.00018904,2]
[394643470,1763806299795,-500.0,0.00018904,2]
[394643471,1763806299804,-781.7,0.00018904,2]
[394643472,1763806299816,-500.0,0.00018904,2]
[394643473,1763806299825,-754.3,0.00018904,2]
[394643474,1763806299834,-500.0,0.00018904,2]
[394643475,1763806299843,-500.0,0.00018904,2]
[394643476,1763806299852,-826.89,0.00018904,2]
[394643477,1763806299861,-760.07,0.00018904,2]
[394643478,1763806299871,-660.25,0.00018904,2]
[394643479,1763806299880,-532.25290386,0.00018904,2]
[394643480,1763806299889,-500.0,0.00018904,2]
[394643481,1763806299899,-620.59,0.00018904,2]
[394643482,1763806299908,-718.76,0.00018904,2]
[394643483,1763806299916,-589.29,0.00018904,2]
[394643484,1763806299925,-523.48,0.00018904,2]
[394643485,1763806299935,-500.0,0.00018904,2]
[394643486,1763806299943,-1151.27,0.00018904,2]
[394643487,1763806299952,-539.63,0.00018904,2]
[394643488,1763806299962,-943.25,0.00018904,2]
[394643489,1763806299973,-420.20664643,0.00018904,2]
[394643490,1763806299982,-532.89,0.00018904,2]
[394643491,1763806299991,-500.0,0.00018904,2]
[394643492,1763806300000,-500.0,0.00018904,2]
[394643493,1763806300010,-717.92,0.00018904,2]
[394643494,1763806300019,-500.0,0.00018904,2]
[394643495,1763806300028,-791.9,0.00018904,2]
[394643496,1763806300038,-500.0,0.00018904,2]
[394643497,1763806300048,-671.16,0.00018904,2]
[394643498,1763806300058,-513.69,0.00018904,2]
[394643499,1763806300067,-718.46,0.00018904,2]
[394643500,1763806300077,-903.01,0.00018904,2]
[394643501,1763806300086,-500.0,0.00018904,2]
[394643502,1763806300095,-500.0,0.00018904,2]
[394643503,1763806300104,-500.0,0.00018904,2]
[394643504,1763806300112,-619.27,0.00018904,2]
[394643505,1763806300123,-633.07,0.00018904,2]
[394643506,1763806300131,-512.4,0.00018904,2]
[394643507,1763806300140,-734.0,0.00018904,2]
[394643508,1763806300150,-686.05,0.00018904,2]
[394643509,1763806300159,-689.73,0.00018904,2]
[394643510,1763806300168,-515.09,0.00018904,2]
[394643511,1763806300177,-909.79,0.00018904,2]
[394643512,1763806300187,-534.13,0.00018904,2]
[394643513,1763806300196,-987.88,0.00018904,2]
[394643514,1763806300205,-500.0,0.00018904,2]
[394643515,1763806300214,-1118.33,0.00018904,2]
[394643516,1763806300223,-593.96,0.00018904,2]
[394643517,1763806300231,-532.39,0.00018904,2]
[394643518,1763806300240,-562.09,0.00018904,2]
[394643519,1763806300249,-500.0,0.00018904,2]
[394643520,1763806300259,-500.0,0.00018904,2]
[394643521,1763806300268,-500.0,0.00018904,2]
[394643522,1763806300277,-500.0,0.00018904,2]
[394643523,1763806300286,-500.0,0.00018904,2]
[394643524,1763806300295,-500.0,0.00018904,2]
[394643525,1763806300305,-500.0,0.00018904,2]
[394643526,1763806300314,-643.4,0.00018904,2]
[394643527,1763806300323,-745.16,0.00018904,2]
[394643528,1763806300331,-760.48,0.00018904,2]
[394643529,1763806300340,-660.26,0.00018904,2]
[394643530,1763806300349,-500.0,0.00018904,2]
[394643531,1763806300358,-500.0,0.00018904,2]
[394643532,1763806300367,-500.0,0.00018904,2]
[394643533,1763806300377,-643.35,0.00018904,2]
[394643534,1763806300386,-536.96,0.00018904,2]
[394643535,1763806300395,-561.03,0.00018904,2]
[394643536,1763806300403,-667.06,0.00018904,2]